fUST/lending_fUST_20240921
["ID","MTS","AMOUNT","RATE_DAILY","PERIOD"]
[338810170,1726923063238,-500.0,0.000152,2]
[338810171,1726923063247,-500.0,0.000152,2]
[338810172,1726923063257,-1093.59,0.000152,2]
[338810173,1726923063266,-500.0,0.000152,2]
[338810174,1726923063276,-500.0,0.000152,2]
[338810175,1726923063285,-500.0,0.000152,2]
[338810176,1726923063295,-500.0,0.000152,2]
[338810177,1726923063304,-500.0,0.000152,2]
[338810178,1726923063314,-500.0,0.000152,2]
[338810179,1726923063324,-254.09988789,0.000152,2]
[338810180,1726923063334,-500.0,0.000152,2]
[338810181,1726923063344,-500.0,0.000152,2]
[338810182,1726923063354,-500.0,0.000152,2]
[338810183,1726923063363,-500.0,0.000152,2]
[338810184,1726923063372,-500.0,0.000152,2]
[338810185,1726923063382,-579.1,0.000152,2]
[338810186,1726923063392,-500.0,0.000152,2]
[338810187,1726923063401,-500.0,0.000152,2]
[338810188,1726923063411,-305.34,0.000152,2]
[338810189,1726923063421,-394.18222679,0.000152,2]
[338810190,1726923063431,-443.02,0.000152,2]
[338810191,1726923063442,-513.12045,0.000152,2]
[338810192,1726923063452,-14989.67,0.000152,2]
[338810193,1726923063462,-513.12045,0.000152,2]
[338810194,1726923063471,-500.894543,0.000152,2]
[338810195,1726923063481,-500.894543,0.000152,2]
[338810196,1726923063491,-2188.57,0.000152,2]
[338810197,1726923063501,-214.390999,0.000152,2]
[338810198,1726923063511,-214.390999,0.000152,2]
[338810199,1726923063521,-500.0,0.000152,2]
[338810200,1726923063530,-151.0,0.00015208,2]
[338810201,1726923063541,-151.0,0.00015208,2]
[338810202,1726923063551,-500.0,0.00015208,2]
[338810203,1726923063561,-575.16,0.00015208,2]
[338810204,1726923063569,-500.0,0.00015209,2]
[338810205,1726923063579,-500.0,0.00015209,2]
[338810206,1726923063588,-810.0,0.00015209,2]
[338810207,1726923063598,-500.0,0.00015209,2]
[338810208,1726923063608,-500.0,0.00015209,2]
[338810209,1726923063618,-500.0,0.00015209,2]
[338810210,1726923063627,-164.71274404,0.00015209,2]
[338810211,1726923063637,-500.0,0.00015209,2]
[338810212,1726923063647,-500.0,0.00015209,2]
[338810213,1726923063656,-500.0,0.00015209,2]
[338810214,1726923063666,-500.0,0.00015209,2]
[338810215,1726923063676,-1515.65,0.00015209,2]
[338810216,1726923063686,-440.64,0.00015209,2]
[338810217,1726923063698,-500.0,0.00015209,2]
[338810218,1726923063709,-500.0,0.00015209,2]
[338810219,1726923063719,-577.59,0.00015209,2]
[338810220,1726923063728,-310.01,0.00015209,2]
[338810221,1726923063737,-496.67,0.00015209,2]
[338810222,1726923063748,-500.0,0.00015209,2]
[338810223,1726923063758,-500.0,0.00015209,2]
[338810224,1726923063768,-500.0,0.00015209,2]
[338810225,1726923063777,-500.0,0.00015209,2]
[338810226,1726923063789,-500.0,0.00015209,2]
[338810227,1726923063797,-709.93,0.00015209,2]
[338810228,1726923063807,-500.0,0.00015209,2]
[338810229,1726923063816,-500.0,0.00015209,2]
[338810230,1726923063825,-338.76,0.00015218,2]
[338810231,1726923063835,-500.0,0.00015218,2]
[338810232,1726923063844,-779.95,0.00015218,2]
[338810233,1726923063854,-500.0,0.00015218,2]
[338810234,1726923063864,-500.0,0.00015218,2]
[338810235,1726923063873,-569.6,0.00015218,2]
[338810236,1726923063882,-500.0,0.00015218,2]
[338810237,1726923063892,-500.0,0.00015218,2]
[338810238,1726923063901,-748.155561,0.00015218,2]
[338810239,1726923063911,-748.155561,0.00015218,2]
[338810240,1726923063921,-151.0,0.00015218,2]
[338810241,1726923063931,-500.0,0.00015218,2]
[338810242,1726923063941,-222.123719,0.00015218,2]
[338810243,1726923063951,-500.0,0.00015218,2]
[338810244,1726923063960,-771.351993,0.00015218,2]
[338810245,1726923063969,-771.351993,0.00015218,2]
[338810246,1726923063979,-151.0,0.00015218,2]
[338810247,1726923063988,-248.062043,0.00015218,2]
[338810248,1726923063998,-248.062043,0.00015218,2]
[338810249,1726923064008,-622.81,0.00015218,2]
[338810250,1726923064017,-552.89,0.00015218,2]
[338810251,1726923064027,-440.18,0.00015218,2]
[338810252,1726923064037,-448.07,0.00015218,2]
[338810253,1726923064047,-500.0,0.00015218,2]
[338810254,1726923064056,-500.0,0.00015218,2]
[338810255,1726923064066,-500.0,0.00015218,2]
[338810256,1726923064075,-500.0,0.00015218,2]
[338810257,1726923064085,-500.0,0.00015219,2]
[338810258,1726923064094,-500.0,0.00015219,2]
[338810259,1726923064103,-514.15,0.00015219,2]
[338810260,1726923064113,-500.0,0.00015219,2]
[338810261,1726923064122,-500.0,0.00015219,2]
[338810262,1726923064131,-500.0,0.00015219,2]
[338810263,1726923064142,-500.0,0.00015219,2]
[338810264,1726923064151,-500.0,0.00015219,2]
[338810265,1726923064160,-500.0,0.00015219,2]
[338810266,1726923064170,-500.0,0.00015219,2]
[338810267,1726923064180,-500.0,0.00015219,2]
[338810268,1726923064190,-500.0,0.00015219,2]
[338810269,1726923064200,-500.0,0.00015219,2]
[338810270,1726923064209,-500.0,0.00015219,2]
[338810271,1726923064218,-326.64,0.00015219,2]
[338810272,1726923064228,-500.0,0.00015219,2]
[338810273,1726923064238,-772.65,0.00015219,2]
[338810274,1726923064247,-191.84575354,0.00015219,2]
[338810275,1726923064256,-351.2,0.00015219,2]
[338810276,1726923064266,-485.43,0.00015219,2]
[338810277,1726923064275,-930.73,0.00015219,2]
[338810278,1726923064285,-500.0,0.00015219,2]
[338810279,1726923064294,-500.0,0.00015219,2]
[338810280,1726923064304,-532.09,0.00015219,2]
[338810281,1726923064314,-528.96,0.00015219,2]
[338810282,1726923064323,-643.91,0.00015219,2]
[338810283,1726923064334,-500.0,0.00015219,2]
[338810284,1726923064343,-682.4,0.00015219,2]
[338810285,1726923064353,-500.0,0.00015219,2]
[338810286,1726923064362,-500.0,0.00015219,2]
[338810287,1726923064371,-716.17,0.00015219,2]
[338810288,1726923064381,-527.28,0.00015219,2]
[338810289,1726923064391,-642.68,0.00015219,2]
[338810290,1726923064402,-500.0,0.00015219,2]
[338810291,1726923064411,-500.0,0.00015219,2]
[338810292,1726923064554,-500.0,0.00015219,2]
[338810293,1726923064564,-500.0,0.00015219,2]
[338810294,1726923064573,-514.06724973,0.00015219,2]
[338810295,1726923064583,-500.0,0.00015219,2]
[338810296,1726923064592,-500.0,0.00015219,2]
[338810297,1726923064602,-500.0,0.00015219,2]
[338810298,1726923064612,-500.0,0.00015219,2]
[338810299,1726923064621,-315.93875383,0.00015219,2]
[338810300,1726923064630,-500.0,0.00015219,2]
[338810301,1726923064640,-500.0,0.00015219,2]
[338810302,1726923064650,-505.18049513,0.00015219,2]
[338810303,1726923064659,-500.0,0.00015219,2]
[338810304,1726923064668,-500.0,0.00015219,2]
[338810305,1726923064677,-548.48,0.00015219,2]
[338810306,1726923064687,-1394.91,0.00015219,2]
[338810307,1726923064697,-570.46,0.00015219,2]
[338810308,1726923064708,-500.0,0.00015219,2]
[338810309,1726923064717,-500.0,0.00015219,2]
[338810310,1726923064727,-500.0,0.00015219,2]
[338810311,1726923064736,-500.0,0.00015219,2]
[338810312,1726923064745,-350.4,0.00015219,2]
[338810313,1726923064754,-500.0,0.00015219,2]
[338810314,1726923064763,-500.0,0.00015219,2]
[338810315,1726923064773,-611.28,0.00015219,2]
[338810316,1726923064783,-173.32,0.00015219,2]
[338810317,1726923064793,-500.0,0.00015219,2]
[338810318,1726923064802,-500.0,0.00015229,2]
[338810319,1726923064811,-555.09543705,0.00015239,2]
[338810320,1726923064820,-152.524121,0.0001525,2]
[338810321,1726923064829,-151.0,0.0001525,2]
[338810322,1726923064839,-151.0,0.0001525,2]
[338810323,1726923064848,-151.0,0.0001525,2]
[338810324,1726923064858,-151.0,0.0001525,2]
[338810325,1726923064867,-151.0,0.0001525,2]
[338810326,1726923064876,-151.0,0.0001525,2]
[338810327,1726923064885,-165.94145,0.0001525,2]
[338810328,1726923064894,-165.94145,0.0001525,2]
[338810329,1726923064903,-767.194356,0.0001525,2]
[338810330,1726923064913,-569.762121,0.0001525,2]
[338810331,1726923064922,-767.194356,0.0001525,2]
[338810332,1726923064932,-569.762121,0.0001525,2]
[338810333,1726923064941,-816.3245,0.0001525,2]
[338810334,1726923064951,-816.3245,0.0001525,2]
[338810335,1726923064960,-593.5931,0.0001525,2]
[338810336,1726923064969,-593.5931,0.0001525,2]
[338810337,1726923064979,-151.0,0.0001525,2]
[338810338,1726923064988,-155.993802,0.0001525,2]
[338810339,1726923064997,-155.993802,0.0001525,2]
[338810340,1726923065006,-514.840881,0.0001525,2]
[338810341,1726923065016,-514.840881,0.0001525,2]
[338810342,1726923065025,-478.879763,0.0001525,2]
[338810343,1726923065034,-1280.157302,0.0001525,2]
[338810344,1726923065049,-478.879763,0.0001525,2]
[338810345,1726923065058,-1280.157302,0.0001525,2]
[338810346,1726923065068,-974.882643,0.0001525,2]
[338810347,1726923065077,-974.882643,0.0001525,2]
[338810348,1726923065086,-1159.9521126,0.0001525,2]
[338810349,1726923065095,-151.0,0.00015262,2]
[338810350,1726923065105,-181.097904,0.00015262,2]
[338810351,1726923065113,-151.0,0.00015262,2]
[338810352,1726923065123,-181.097904,0.00015262,2]
[338810353,1726923065132,-460.390961,0.00015262,2]
[338810354,1726923065142,-460.390961,0.00015262,2]
[338810355,1726923065151,-601.180153,0.00015262,2]
[338810356,1726923065161,-601.180153,0.00015262,2]
[338810357,1726923065170,-164.880755,0.00015262,2]
[338810358,1726923065179,-203.531798,0.00015262,2]
[338810359,1726923065189,-203.531798,0.00015262,2]
[338810360,1726923065198,-300.0,0.000153,5]
[338810361,1726923065207,-299.98725885,0.00015329,2]
[338810362,1726923065216,-1633.912576,0.00015406,2]
[338810363,1726923065225,-398.697525,0.00015406,2]
[338810364,1726923065234,-168.514112,0.00015406,2]
[338810365,1726923065243,-369.216815,0.00015406,2]
[338810366,1726923065254,-521.84848628,0.0001541,2]
[338810367,1726923065263,-420.0,0.00015437,2]
[338810368,1726923065273,-545.9,0.00015464,2]
[338810369,1726923065282,-500.0,0.00015464,2]
[338810370,1726923065299,-617.18,0.00015473,2]
[338810371,1726923065309,-500.0,0.00015473,2]
[338810372,1726923065318,-500.0,0.00015473,2]
[338810373,1726923065328,-1093.59,0.00015473,2]
[338810374,1726923065338,-500.0,0.00015473,2]
[338810375,1726923065347,-500.0,0.00015473,2]
[338810376,1726923065356,-500.0,0.00015473,2]
[338810377,1726923065365,-500.0,0.00015473,2]
[338810378,1726923065374,-500.0,0.00015473,2]
[338810379,1726923065383,-500.0,0.00015473,2]
[338810380,1726923065392,-500.0,0.00015473,2]
[338810381,1726923065401,-500.0,0.00015473,2]
[338810382,1726923065411,-500.0,0.00015473,2]
[338810383,1726923065419,-500.0,0.00015473,2]
[338810384,1726923065429,-13224.76103102,0.00015473,2]
[338810385,1726923065605,-1764.90896898,0.00015473,2]
[338810386,1726923065615,-209.99102871,0.00015473,2]
[338810388,1726923109161,3000.0,0.000135,2]
[338810389,1726923126485,24900.0,0.00013108,2]
[338810390,1726923153650,4000.4,0.00014014,2]
[338810393,1726923180704,160.3906344,0.00013107,2]
[338810394,1726923228825,521.84848628,0.0001267,2]
[338810395,1726923411057,289.73265517,0.00014004,2]
[338810396,1726923448818,272.915137,0.00013699,2]
[338810397,1726923499114,6204.41,0.00014014,2]
[338810398,1726923521505,500.0,0.0001267,2]
[338810399,1726923723655,176.4192908,0.00013093,2]
[338810401,1726923903538,1000.0,0.00013994,2]
[338810402,1726923946484,253.5160733,0.00013979,2]
[338810403,1726923987547,819.72694791,0.00014003,2]
[338810404,1726924010752,1000.0,0.00013984,2]
[338810405,1726924010835,21678.71,0.00014,2]
[338810407,1726924108727,4532.9,0.00014014,2]
[338810408,1726924130209,3000.0,0.00014,2]
[338810409,1726924158866,176.859069,0.00012423,2]
[338810410,1726924172142,1000.0,0.00014014,2]
[338810411,1726924206459,291.089309,0.00013699,2]
[338810430,1726924232406,-300.0,0.00014073,2]
[338810431,1726924232416,-10.746,0.00014073,2]
[338810501,1726924238798,-289.254,0.00014073,2]
[338810503,1726924238809,-594.06,0.00014073,2]
[338810505,1726924238820,-500.0,0.00014073,2]
[338810508,1726924238831,-51436.1292972,0.00014074,2]
[338810510,1726924238840,-12376.7068195,0.00014074,2]
[338810511,1726924238851,-51436.1292972,0.00014074,2]
[338810514,1726924238861,-12376.7068195,0.00014074,2]
[338810515,1726924238871,-154308.387892,0.00014078,2]
[338810517,1726924238880,-37130.1204584,0.00014078,2]
[338810519,1726924238889,-500.0,0.00014078,2]
[338810521,1726924238899,-500.0,0.00014078,2]
[338810523,1726924238908,-500.0,0.00014078,2]
[338810525,1726924238918,-500.0,0.00014078,2]
[338810527,1726924238927,-500.0,0.00014078,2]
[338810529,1726924238937,-500.0,0.00014078,2]
[338810531,1726924238946,-500.0,0.00014078,2]
[338810533,1726924238956,-500.0,0.00014078,2]
[338810535,1726924238966,-500.0,0.00014078,2]
[338810537,1726924238976,-545.9,0.00014078,2]
[338810539,1726924238986,-500.0,0.00014078,2]
[338810541,1726924238995,-500.0,0.00014078,2]
[338810543,1726924239005,-500.0,0.00014078,2]
[338810545,1726924239015,-551.19,0.00014078,2]
[338810547,1726924239024,-14291.56,0.00014078,2]
[338810548,1726924239033,-500.0,0.00014078,2]
[338810550,1726924239043,-2088.63,0.00014078,2]
[338810552,1726924239053,-520.0068009,0.00014078,2]
[338810554,1726924239062,-500.0,0.00014078,2]
[338810556,1726924239072,-500.0,0.00014078,2]
[338810558,1726924239082,-500.0,0.00014078,2]
[338810560,1726924239091,-500.0,0.00014078,2]
[338810562,1726924239101,-500.0,0.00014078,2]
[338810564,1726924239111,-250.0,0.00014078,2]
[338810567,1726924239121,-500.0,0.00014078,2]
[338810569,1726924239131,-500.0,0.00014078,2]
[338810570,1726924239142,-500.0,0.00014078,2]
[338810573,1726924239155,-500.0,0.00014078,2]
[338810575,1726924239165,-500.0,0.00014078,2]
[338810577,1726924239174,-500.0,0.00014078,2]
[338810579,1726924239184,-500.0,0.00014078,2]
[338810581,1726924239194,-257.84896523,0.00014078,2]
[338810582,1726924239203,-500.0,0.00014078,2]
[338810585,1726924239214,-500.0,0.00014078,2]
[338810586,1726924239224,-500.0,0.00014078,2]
[338810589,1726924239237,-500.0,0.00014078,2]
[338810591,1726924239248,-500.0,0.00014078,2]
[338810593,1726924239258,-500.0,0.00014078,2]
[338810595,1726924239267,-500.0,0.00014078,2]
[338810597,1726924239277,-500.0,0.00014078,2]
[338810598,1726924239287,-500.0,0.00014078,2]
[338810600,1726924239296,-500.0,0.00014078,2]
[338810602,1726924239306,-500.0,0.00014078,2]
[338810604,1726924239315,-196.35778699,0.00014078,2]
[338810606,1726924239325,-500.0,0.00014078,2]
[338810608,1726924239334,-500.0,0.00014078,2]
[338810610,1726924239343,-412.27889875,0.00014078,2]
[338810612,1726924239353,-500.0,0.00014078,2]
[338810614,1726924239364,-500.0,0.00014078,2]
[338810616,1726924239374,-500.0,0.00014078,2]
[338810619,1726924239385,-500.0,0.00014078,2]
[338810621,1726924239394,-500.0,0.00014078,2]
[338810622,1726924239404,-500.0,0.00014078,2]
[338810624,1726924239413,-500.0,0.00014078,2]
[338810626,1726924239423,-500.0,0.00014078,2]
[338810628,1726924239434,-500.0,0.00014078,2]
[338810630,1726924239445,-500.0,0.00014078,2]
[338810632,1726924239456,-500.0,0.00014078,2]
[338810634,1726924239466,-500.0,0.00014078,2]
[338810636,1726924239475,-500.0,0.00014078,2]
[338810638,1726924239485,-500.0,0.00014078,2]
[338810640,1726924239494,-500.0,0.00014078,2]
[338810642,1726924239504,-500.0,0.00014078,2]
[338810644,1726924239514,-500.0,0.00014078,2]
[338810646,1726924239523,-500.0,0.00014078,2]
[338810648,1726924239533,-500.0,0.00014078,2]
[338810650,1726924239543,-500.0,0.00014078,2]
[338810652,1726924239552,-500.0,0.00014078,2]
[338810654,1726924239562,-500.0,0.00014078,2]
[338810656,1726924239571,-500.0,0.00014078,2]
[338810658,1726924239581,-500.0,0.00014078,2]
[338810660,1726924239591,-500.0,0.00014078,2]
[338810662,1726924239600,-51436.1292972,0.00014079,2]
[338810664,1726924239610,-24753.4136389,0.00014079,2]
[338810666,1726924239619,-12376.7068195,0.00014084,2]
[338810668,1726924239628,-24753.4136389,0.00014084,2]
[338810670,1726924239637,-500.0,0.00014087,2]
[338810672,1726924239647,-500.0,0.00014087,2]
[338810674,1726924239656,-341.95014721,0.00014087,2]
[338810676,1726924239665,-500.0,0.00014087,2]
[338810678,1726924239675,-371.79852998,0.00014087,2]
[338810680,1726924239685,-500.0,0.00014087,2]
[338810682,1726924239695,-500.0,0.00014087,2]
[338810684,1726924239704,-500.0,0.00014087,2]
[338810686,1726924239713,-500.0,0.00014087,2]
[338810688,1726924239723,-500.0,0.00014087,2]
[338810690,1726924239732,-500.0,0.00014087,2]
[338810692,1726924239741,-500.0,0.00014087,2]
[338810694,1726924239751,-500.0,0.00014087,2]
[338810696,1726924239760,-500.0,0.00014087,2]
[338810698,1726924239769,-500.0,0.00014087,2]
[338810699,1726924239779,-500.0,0.00014087,2]
[338810701,1726924239788,-500.0,0.00014087,2]
[338810703,1726924239797,-437.84945997,0.00014087,2]
[338810705,1726924239807,-500.0,0.00014087,2]
[338810707,1726924239816,-500.0,0.00014087,2]
[338810709,1726924239826,-364.6117471,0.00014087,2]
[338810711,1726924239835,-500.0,0.00014087,2]
[338810713,1726924239844,-500.0,0.00014087,2]
[338810715,1726924239854,-500.0,0.00014087,2]
[338810717,1726924239864,-500.0,0.00014087,2]
[338810719,1726924239874,-500.0,0.00014087,2]
[338810721,1726924239884,-164.1821981,0.00014087,2]
[338810723,1726924239893,-500.0,0.00014087,2]
[338810725,1726924239903,-500.0,0.00014087,2]
[338810727,1726924239912,-500.0,0.00014087,2]
[338810728,1726924239922,-500.0,0.00014087,2]
[338810730,1726924239932,-500.0,0.00014087,2]
[338810732,1726924239941,-500.0,0.00014087,2]
[338810734,1726924239950,-350.0,0.00014087,2]
[338810736,1726924239959,-500.0,0.00014087,2]
[338810738,1726924239968,-500.0,0.00014087,2]
[338810740,1726924239977,-500.0,0.00014087,2]
[338810742,1726924239986,-500.0,0.00014087,2]
[338810744,1726924239995,-500.0,0.00014087,2]
[338810746,1726924240004,-500.0,0.00014087,2]
[338810748,1726924240015,-500.0,0.00014087,2]
[338810750,1726924240025,-164.07763664,0.00014087,2]
[338810752,1726924240034,-500.0,0.00014088,2]
[338810754,1726924240043,-500.0,0.00014088,2]
[338810756,1726924240054,-500.0,0.00014088,2]
[338810758,1726924240064,-500.71773299,0.00014088,2]
[338810760,1726924240073,-500.0,0.00014088,2]
[338810762,1726924240083,-500.0,0.00014088,2]
[338810764,1726924240092,-500.0,0.00014088,2]
[338810766,1726924240102,-643.61986857,0.00014088,2]
[338810768,1726924240111,-500.0,0.00014088,2]
[338810771,1726924240121,-500.0,0.00014088,2]
[338810772,1726924240130,-500.0,0.00014088,2]
[338810775,1726924240140,-500.0,0.00014088,2]
[338810777,1726924240153,-500.0,0.00014088,2]
[338810779,1726924240162,-550.19737991,0.00014088,2]
[338810781,1726924240171,-560.88,0.00014088,2]
[338810783,1726924240181,-500.0,0.00014088,2]
[338810785,1726924240192,-500.0,0.00014088,2]
[338810786,1726924240201,-500.0,0.00014088,2]
[338810787,1726924240210,-500.0,0.00014088,2]
[338810789,1726924240219,-500.0,0.00014088,2]
[338810791,1726924240229,-500.0,0.00014088,2]
[338810793,1726924240240,-500.0,0.00014088,2]
[338810795,1726924240249,-500.0,0.00014088,2]
[338810797,1726924240259,-500.0,0.00014088,2]
[338810799,1726924240268,-500.0,0.00014088,2]
[338810801,1726924240277,-500.0,0.00014088,2]
[338810802,1726924240287,-500.0,0.00014088,2]
[338810804,1726924240296,-500.0,0.00014088,2]
[338810806,1726924240305,-500.0,0.00014088,2]
[338810808,1726924240314,-500.0,0.00014088,2]
[338810810,1726924240324,-500.0,0.00014088,2]
[338810812,1726924240334,-500.0,0.00014088,2]
[338810814,1726924240343,-500.0,0.00014088,2]
[338810816,1726924240353,-500.0,0.00014088,2]
[338810818,1726924240362,-911.33,0.00014088,2]
[338810820,1726924240371,-500.0,0.00014088,2]
[338810822,1726924240380,-500.0,0.00014088,2]
[338810824,1726924240390,-441.34291603,0.00014088,2]
[338810826,1726924240399,-500.0,0.00014088,2]
[338810828,1726924240408,-500.0,0.00014088,2]
[338810830,1726924240418,-500.0,0.00014088,2]
[338810832,1726924240427,-500.0,0.00014088,2]
[338810834,1726924240438,-500.0,0.00014088,2]
[338810836,1726924240447,-284.3827466,0.00014088,2]
[338810838,1726924240456,-500.0,0.00014088,2]
[338810840,1726924240465,-500.0,0.00014088,2]
[338810842,1726924240474,-500.0,0.00014088,2]
[338810844,1726924240483,-662.09,0.00014088,2]
[338810846,1726924240493,-500.0,0.00014088,2]
[338810848,1726924240502,-500.0,0.00014088,2]
[338810849,1726924240511,-500.0,0.00014088,2]
[338810851,1726924240521,-500.0,0.00014088,2]
[338810854,1726924240530,-501.606519,0.00014088,2]
[338810856,1726924240539,-625.34922717,0.00014088,2]
[338810857,1726924240548,-500.0,0.00014088,2]
[338810860,1726924240557,-500.0,0.00014088,2]
[338810862,1726924240566,-504.02,0.00014088,2]
[338810864,1726924240575,-711.92,0.00014088,2]
[338810865,1726924240584,-555.42,0.00014088,2]
[338810867,1726924240593,-500.0,0.00014088,2]
[338810869,1726924240603,-500.0,0.00014088,2]
[338810871,1726924240613,-500.0,0.00014088,2]
[338810873,1726924240622,-500.0,0.00014088,2]
[338810875,1726924240631,-500.0,0.00014088,2]
[338810877,1726924240640,-500.0,0.00014088,2]
[338810879,1726924240649,-500.0,0.00014088,2]
[338810881,1726924240658,-500.0,0.00014088,2]
[338810883,1726924240668,-543.99,0.00014088,2]
[338810884,1726924240677,-500.0,0.00014088,2]
[338810886,1726924240686,-500.0,0.00014088,2]
[338810904,1726924240865,-579.1,0.00014088,2]
[338810906,1726924240875,-500.0,0.00014088,2]
[338810908,1726924240884,-500.0,0.00014088,2]
[338810910,1726924240894,-500.0,0.00014088,2]
[338810911,1726924240904,-500.0,0.00014088,2]
[338810914,1726924240913,-500.0,0.00014088,2]
[338810916,1726924240923,-500.0,0.00014088,2]
[338810917,1726924240934,-500.0,0.00014088,2]
[338810919,1726924240944,-504.5349856,0.00014088,2]
[338810921,1726924240955,-500.0,0.00014088,2]
[338810923,1726924240964,-500.0,0.00014088,2]
[338810925,1726924240973,-500.0,0.00014088,2]
[338810926,1726924240984,-500.0,0.00014088,2]
[338810929,1726924240994,-500.0,0.00014088,2]
[338810930,1726924241003,-500.0,0.00014088,2]
[338810932,1726924241012,-500.0,0.00014088,2]
[338810934,1726924241022,-500.0,0.00014088,2]
[338810936,1726924241035,-500.0,0.00014088,2]
[338810938,1726924241044,-500.0,0.00014088,2]
[338810941,1726924241054,-500.0,0.00014088,2]
[338810942,1726924241064,-501.97088384,0.00014088,2]
[338810944,1726924241074,-500.0,0.00014088,2]
[338810946,1726924241085,-287.48043759,0.00014088,2]
[338810948,1726924241096,-500.0,0.00014088,2]
[338810950,1726924241106,-500.0,0.00014088,2]
[338810952,1726924241115,-500.0,0.00014088,2]
[338810954,1726924241126,-500.0,0.00014088,2]
[338810957,1726924241136,-500.0,0.00014088,2]
[338810958,1726924241147,-500.0,0.00014088,2]
[338810961,1726924241157,-500.0,0.00014088,2]
[338810963,1726924241166,-500.0,0.00014088,2]
[338810964,1726924241175,-500.0,0.00014088,2]
[338810966,1726924241185,-500.0,0.00014088,2]
[338810968,1726924241194,-500.0,0.00014088,2]
[338810970,1726924241204,-500.0,0.00014088,2]
[338810972,1726924241213,-500.0,0.00014088,2]
[338810974,1726924241224,-500.0,0.00014088,2]
[338810976,1726924241233,-500.0,0.00014088,2]
[338810978,1726924241243,-500.0,0.00014088,2]
[338810980,1726924241253,-500.0,0.00014088,2]
[338810982,1726924241262,-500.0,0.00014088,2]
[338810984,1726924241272,-500.0,0.00014088,2]
[338810986,1726924241282,-500.0,0.00014088,2]
[338810988,1726924241291,-500.0,0.00014088,2]
[338810990,1726924241301,-503.8524033,0.00014088,2]
[338810992,1726924241311,-500.0,0.00014088,2]
[338810994,1726924241321,-500.0,0.00014088,2]
[338810996,1726924241330,-385.48990677,0.00014088,2]
[338810998,1726924241340,-356.12257363,0.00014088,2]
[338811000,1726924241350,-500.0,0.00014088,2]
[338811002,1726924241359,-500.0,0.00014088,2]
[338811004,1726924241369,-500.0,0.00014088,2]
[338811006,1726924241378,-500.0,0.00014088,2]
[338811008,1726924241388,-500.0,0.00014088,2]
[338811010,1726924241398,-500.0,0.00014088,2]
[338811012,1726924241408,-500.0,0.00014088,2]
[338811014,1726924241417,-500.0,0.00014088,2]
[338811016,1726924241427,-500.0,0.00014088,2]
[338811018,1726924241438,-500.0,0.00014088,2]
[338811020,1726924241449,-583.1153585,0.00014088,2]
[338811022,1726924241459,-500.0,0.00014088,2]
[338811023,1726924241468,-500.0,0.00014088,2]
[338811024,1726924241478,-500.0,0.00014088,2]
[338811025,1726924241487,-500.0,0.00014088,2]